Cogmind - Beta 16 --- EXPLORER MODE // 2025.11.24 @ 15:22:31 Player: K.K.Y. Result: Destroyed by P9-MUN(R) with Subdweller Laser Performance ------------- Evolutions (0) 0 Regions Visited (3) 600 Robots Destroyed (31) 155 Value Destroyed (841) 841 Prototype IDs (14) 280 Alien Tech Used (0) 0 Bonus (0) 0 TOTAL SCORE: 1876 Bonus ------- None Cogmind --------- Core Integrity 0/250 Matter 300/300 Energy 87/170 System Corruption 1% Temperature Cool (6) Movement Rolling (110) Location -10/Subcaves Parts ------- > --- POWER (1+2) ------ Makeshift Power Source > --- PROPULSION (2+1) - Subdweller Monowheel Subdweller Monowheel > --- UTILITY (3+1) ---- Improved Heat Sink Medium Storage Unit Structural Scanner (+) Rainbow Chip > --- WEAPON (2+1) ----- Improved EM Shotgun (+) Powered Cannon > --- INVENTORY (10) --- High-capacity Storage Unit Terrain Scanner Scrap Shield Improved EM Shotgun Improved EM Shotgun Improved Medium Laser Improved Medium Laser Subdweller Machine Gun Battle Cannon Peak State ------------ > --- POWER ------------ Makeshift Power Source > --- PROPULSION ------- Subdweller Monowheel Subdweller Monowheel > --- UTILITY ---------- Improved Heat Sink Medium Storage Unit Structural Scanner Rainbow Chip > --- WEAPON ----------- Improved EM Shotgun Powered Cannon > --- INVENTORY -------- High-capacity Storage Unit Terrain Scanner Scrap Shield Improved EM Shotgun Improved EM Shotgun Improved Medium Laser Improved Medium Laser Subdweller Machine Gun Battle Cannon [Rating: 45] Favorites ----------- Power Makeshift Power Source Engine Makeshift Power Source Propulsion Light Treads Treads Light Treads Wheel Subdweller Monowheel Utility Medium Storage Unit Device Improved Heat Sink Storage Medium Storage Unit Processor Rainbow Chip Weapon Improved Medium Laser Energy Gun Improved Medium Laser Energy Cannon Powered Cannon Ballistic Gun Subdweller Machine Gun Ballistic Cannon Battle Cannon Special Weapon Mining Laser Build | -11 -10 -10 -10 ------- Run | Yrd Mat Min Sub Slots Evolved 1 | . 1 . . Power . | . . . . Propulsion . | . . . . Utility 1 | . 1 . . Weapon . | . . . . Parts Attached 25 | 6 5 1 13 Power 2 | 1 . . 1 Engine 2 | 1 . . 1 Core . | . . . . Reactor . | . . . . Propulsion 7 | 2 2 . 3 Treads 5 | 2 2 . 1 Leg . | . . . . Wheel 2 | . . . 2 Hover . | . . . . Flight . | . . . . Utility 4 | 1 1 . 2 Device 2 | . 1 . 1 Storage 1 | 1 . . . Processor 1 | . . . 1 Hackware . | . . . . Protection . | . . . . Artifact . | . . . . Weapon 12 | 2 2 1 7 Energy Gun 6 | 2 2 1 1 Energy Cannon 1 | . . . 1 Ballistic Gun 1 | . . . 1 Ballistic Cannon 3 | . . . 3 Launcher . | . . . . Special Weapon 1 | . . . 1 Impact Weapon . | . . . . Slashing Weapon . | . . . . Piercing Weapon . | . . . . Special Melee Weapon . | . . . . Unidentified Prototypes 2 | . 2 . . Parts Lost 6 | . 1 1 4 Power 1 | . 1 . . Propulsion 2 | . . . 2 Utility . | . . . . Weapon 3 | . . 1 2 Highest Loss Streak 2 | . 1 1 2 To Critical Strikes 2 | . . . 2 Average Backups 8 | 1 8 9 8 Power . | . . . . Propulsion . | . . . . Utility 2 | . 2 3 2 Weapon 6 | . 6 6 6 Tool/Special . | . . . . Unused Backups 7 | . . . 7 Power . | . . . . Propulsion . | . . . . Utility 3 | . . . 3 Weapon 4 | . . . 4 Tool/Special . | . . . . Average Slot Usage (%) 70 | . 73 75 66 Engine 3 | . 5 . 2 Treads 17 | . 25 25 10 Device 11 | . 5 12 14 Storage 10 | . 12 12 8 Processor 2 | . . . 5 Energy Gun 18 | . 24 25 12 Ballistic Cannon 2 | . . . 5 Peak Build Rating 45 | 6 14 14 45 Average Rating 19 | 3 12 13 26 On Entrance 8 | . 6 14 13 Avg Prop Armor Cover (%) . | . . . . Naked Turns . | . . . . Heaviest Build 29 | 19 21 17 29 Greatest Support 40 | 40 40 40 40 Greatest Overweight (x) 9 | . . . 9 Average Overweight (x) . | . . . . Largest Inventory Capacity 10 | 10 10 10 10 Average Capacity 9 | 7 10 10 10 Most Carried 10 | 4 10 10 10 Average Carried 8 | 1 8 9 8 Final Capacity 10 | 10 10 10 10 Final Carried 10 | 1 10 9 10 Class Distribution -------------------- 72% | Hacker-Mutant 27% | Hacker-Skirmisher Dominant Class ---------------- Hacker-Mutant | -10/Materials Hacker-Mutant | -10/Mines Hacker-Skirmisher | -10/Subcaves Resources | -11 -10 -10 -10 ----------- Run | Yrd Mat Min Sub Matter Collected 550 | 253 47 36 214 Remotely . | . . . . Salvage Created 1150 | . 446 46 658 Parts 56 | . 25 1 30 Haulers Intercepted 2 | . 2 . . Recyclers Shooed . | . . . . Parts Field Recycled . | . . . . Retrieved Matter . | . . . . Parts Self-Destructed . | . . . . Prevented . | . . . . Parts Restored . | . . . . Kills | -11 -10 -10 -10 ------- Run | Yrd Mat Min Sub Combat Hostiles Destroyed 25 | . 8 2 15 Guns 19 | . 8 2 9 Cannons 6 | . . . 6 Classes Destroyed 9 | . 4 2 3 Worker 1 | . . 1 . Hauler 2 | . 2 . . Turret 2 | . . . 2 Watcher 3 | . 3 . . Swarmer 7 | . 4 . 3 Grunt 6 | . 4 . 2 Sentry 1 | . . . 1 Subdweller 9 | . . . 9 Assembled 2 | . . 2 . Best Kill Streak 4 | . 3 1 4 Combat Bots Only 4 | . 2 1 4 Max Kills in Single Turn 2 | . 1 1 2 Gunslinging 1 | . . . 1 Exploded . | . . . . Melee . | . . . . Uniques/NPCs Destroyed . | . . . . Combat | -11 -10 -10 -10 -------- Run | Yrd Mat Min Sub Hostile Shots Fired 145 | . 30 11 104 Missed 39 | . 8 . 31 Hits 106 | . 22 11 73 Projectile 106 | . 22 11 73 AOE 10 | . . 10 . Critical Strikes 4 | . . . 4 Damage Taken 1146 | . 197 243 706 Core 254 | . 21 81 152 Absorbed by Shields . | . . . . Ignored by Resistances 707 | . 131 144 432 Core Remaining (%) 100 | 100 . . . Volleys Fired 100 | . 25 10 65 Largest 3 | . 2 2 3 Hottest 156 | . 101 112 156 Shots Fired 194 | . 42 20 132 Gun 161 | . 42 20 99 Cannon 28 | . . . 28 Launcher . | . . . . Special 5 | . . . 5 Kinetic 22 | . . . 22 Thermal 129 | . 25 17 87 Explosive . | . . . . Electromagnetic 43 | . 17 3 23 Robot Hit Streak 49 | . 14 18 49 Robot Miss Streak 2 | . 2 1 1 Penetration Max . | . . . . Secondary Targets 2 | . . . 2 Max Gunslinging Chain 1 | . . . 1 Shots Hit Robots 116 | . 30 19 67 Core Hits 59 | . 20 8 31 Critical Kills 1 | . . . 1 Critical Parts Destroyed . | . . . . Critical Strikes 16 | . 6 1 9 Burn 13 | . 6 1 6 Destroy 1 | . . . 1 Blast 2 | . . . 2 Melee Attacks . | . . . . Impact . | . . . . Slashing . | . . . . Piercing . | . . . . Sneak Attacks . | . . . . Combat Hostiles . | . . . . Follow-up Attacks . | . . . . Damage Inflicted 2311 | . 621 346 1344 Guns 1844 | . 599 346 899 Cannons 373 | . . . 373 Explosions 22 | . 22 . . Melee . | . . . . Ramming . | . . . . Kinetic 112 | . . . 112 Thermal 1577 | . 244 293 1040 Explosive . | . . . . Electromagnetic 622 | . 377 53 192 Impact . | . . . . Slashing . | . . . . Piercing . | . . . . Highest Corruption 1 | . 1 1 1 Average Corruption 1 | . 1 1 1 Corruption Purged . | . . . . Corruption Blocked . | . . . . Effects 22 | . 3 4 15 Message Errors 7 | . 1 . 6 Matter Fused 3 | . 1 1 1 Heat Flow Errors 6 | . 1 2 3 Energy Discharges 1 | . . . 1 Data Loss (minor) 3 | . . 1 2 Alerts 2 | . . . 2 Overload Shots . | . . . . Overflow Damage . | . . . . Projectiles . | . . . . Explosions . | . . . . Melee . | . . . . Knockbacks 1 | . . . 1 Impact . | . . . . Kinetic 1 | . . . 1 Secondary . | . . . . Self-Inflicted Damage 20 | . 20 . . Shots 1 | . 1 . . Rammed . | . . . . Targets Rammed . | . . . . Kicked . | . . . . Crushed . | . . . . Highest Temperature 240 | . 180 240 229 Average Temperature 56 | . 42 102 97 Received Heat Transfer 516 | . 57 20 439 Siege Activations . | . . . . Martial Activations . | . . . . Shielding Activations . | . . . . Robots Disrupted 1 | . . . 1 Combat Hostiles 1 | . . . 1 Robots Corrupted . | . . . . Combat Hostiles . | . . . . Parts Fried . | . . . . Impact Corruptions . | . . . . Robots Melted . | . . . . Combat Hostiles . | . . . . Parts Melted 8 | . 2 . 6 Heat Transferred 3789 | . 975 703 2111 Parts Sabotaged . | . . . . Parts Stolen . | . . . . Parts Stripped . | . . . . Power Chain Reactions 1 | . 1 . . Alert | -11 -10 -10 -10 ------- Run | Yrd Mat Min Sub Maximum Alert Level . | . . . . Low Security (%) 100 | 100 100 100 . Level 1 . | . . . . Level 2 . | . . . . Level 3 . | . . . . Level 4 . | . . . . Level 5 . | . . . . High Security . | . . . . Max Security . | . . . . Peak Influence 50 | . 50 5 . Initial . | . . . . Average 3 | . 5 . . Influence Increases 468 | . 248 5 215 Destroy 0b10 Robot/C 320 | . 160 . 160 Destroy 0b10 Robot/NC 30 | . 25 5 . Destroy Leader 60 | . 50 . 10 Successful Hack 3 | . 3 . . Disable Machine 4 | . 4 . . Destroy Structure 6 | . 6 . . Lose Combat Pursuer 45 | . . . 45 Influence Decreases 468 | . 248 5 215 Time Decay 468 | . 248 5 215 Squads Dispatched . | . . . . Investigation . | . . . . Extermination . | . . . . Reinforcement . | . . . . Assault . | . . . . Garrison . | . . . . Intercept . | . . . . Searches Triggered . | . . . . Construction Impeded . | . . . . Haulers Reinforced . | . . . . Active Scanning Responses . | . . . . Cargo Convoy Interrupts . | . . . . Stealth | -11 -10 -10 -10 --------- Run | Yrd Mat Min Sub Distress Signals . | . . . . Communications Jammed . | . . . . Distress Signals . | . . . . Times Spotted 38 | . 13 5 20 Peak Tracking Total 7 | . 3 2 7 Tactical Retreats 2 | . . . 2 Traps | -11 -10 -10 -10 ------- Run | Yrd Mat Min Sub Traps Triggered 3 | . 2 . 1 Indirectly . | . . . . Trap Hack Attempts . | . . . . Triggered . | . . . . Disarmed . | . . . . Reprogrammed . | . . . . Reused . | . . . . Traps Extracted . | . . . . Installed . | . . . . Triggered . | . . . . Machines | -11 -10 -10 -10 ---------- Run | Yrd Mat Min Sub Machines Disabled 4 | . 1 . 3 Max in Single Turn 1 | . 1 . 1 Machines Repaired . | . . . . Machines Dismantled . | . . . . Machines Sabotaged . | . . . . Overloaded Fab Kills . | . . . . Hacking | -11 -10 -10 -10 --------- Run | Yrd Mat Min Sub Machines Accessed 10 | . 9 . 1 Terminals 8 | . 8 . . Fabricators . | . . . . Repair Stations 1 | . 1 . . Recycling Units . | . . . . Scanalyzers . | . . . . Garrison Access . | . . . . Total Hacks 13 | . 12 . 1 Successful 11 | . 10 . 1 Failed 2 | . 2 . . Catastrophic . | . . . . Database Lockouts . | . . . . Manual 13 | . 13 . . Terminals 11 | . 11 . . Fabricators . | . . . . Repair Stations 1 | . 1 . . Recycling Units . | . . . . Scanalyzers . | . . . . Garrison Access . | . . . . Terminal Hacks 2 | . 1 . 1 Scanalyzer Index 1 | . 1 . . Proto ID Catalog 1 | . . . 1 Fabricator Hacks . | . . . . Repair Station Hacks . | . . . . Recycling Unit Hacks . | . . . . Scanalyzer . | . . . . Garrison Access Hacks . | . . . . Unauthorized Hacks 9 | . 9 . . Terminals 8 | . 8 . . Botnet 8 | . 8 . . Fabricators . | . . . . Repair Stations 1 | . 1 . . Mechanics 1 | . 1 . . Recycling Units . | . . . . Scanalyzers . | . . . . Garrison Access . | . . . . Data Cores Recovered . | . . . . Used . | . . . . Hacking Detections 4 | . 4 . . Full Trace Events . | . . . . Feedback Events . | . . . . Feedback Blocked . | . . . . Robot Schematics Acquired . | . . . . Robots Built . | . . . . Authchips . | . . . . Time . | . . . . Total Robot Build Rating . | . . . . Part Schematics Acquired . | . . . . Parts Built . | . . . . Authchips . | . . . . Time . | . . . . Total Part Build Rating . | . . . . Part Studies Acquired . | . . . . Parts Repaired . | . . . . Time . | . . . . Parts Recycled . | . . . . Recycled Matter . | . . . . Retrieved Matter . | . . . . Retrieved Components . | . . . . Parts Scanalyzed . | . . . . Part Schematics Acquired . | . . . . Parts Damaged . | . . . . Bothacking | -11 -10 -10 -10 ------------ Run | Yrd Mat Min Sub Used RIF Installer . | . . . . Robots Hacked . | . . . . Non-combat . | . . . . Combat . | . . . . Robot Hacks Applied . | . . . . Relay Couplers Released . | . . . . Fabnet Peak Effective % . | . . . . Robots Rewired . | . . . . Allies Hacked . | . . . . Hacks Repelled . | . . . . Allies | -11 -10 -10 -10 -------- Run | Yrd Mat Min Sub Total Allies . | . . . . Largest Group . | . . . . Highest-Rated Group . | . . . . Highest-Rated Ally . | . . . . Total Orders . | . . . . Ally Attacks . | . . . . Total Damage . | . . . . Kills . | . . . . Allies Corrupted . | . . . . Allies Melted . | . . . . Intel | -11 -10 -10 -10 ------- Run | Yrd Mat Min Sub Active Infowar (turns) 1471 | . . . 1471 Structural 1471 | . . . 1471 Robot Analysis Total . | . . . . Derelict Logs Recovered 2 | . . 1 1 Drone Launches . | . . . . Drone Recoveries . | . . . . Exploration | -11 -10 -10 -10 ------------- Run | Yrd Mat Min Sub Turns Passed 4218 | 62 1315 737 2104 Spaces Moved 2066 | 36 756 425 849 Core 10 | 7 . . 3 Treads 1965 | 29 756 425 755 Legs . | . . . . Wheels 91 | . . . 91 Hover . | . . . . Flight . | . . . . Fastest Speed 50 | 50 160 160 110 Average Speed 174 | 138 160 160 197 Slowest Speed 500 | 160 160 160 500 Overloaded Moves . | . . . . Propulsion Burnouts . | . . . . Robots Hopped . | . . . . Potential Cave-ins . | . . . . Cave-ins Triggered . | . . . . Exploration Rate (%) 61 | 4 100 87 55 Regions Visited 3 Branch Regions 2 Pre-discovered Areas 1 | . . . 1 Known Exits Taken 3 | 1 1 1 . Unknown Exits Taken . | . . . . Scrap Searched 7 | . . . 7 Spaces Dug . | . . . . Terrain Destroyed 6 | . 3 . 3 Melee . | . . . . Projectile 3 | . . . 3 AOE 3 | . 3 . . Terrain Rammed . | . . . . Walls Destroyed . | . . . . Machines Disabled . | . . . . Actions | -11 -10 -10 -10 --------- Run | Yrd Mat Min Sub Total 2478 | 48 822 462 1146 Wait 253 | . 20 27 206 Move 2063 | 35 755 424 849 Hop . | . . . . Pick Up 26 | 7 11 . 8 Fast Attach 5 | . 1 . 4 Attach 14 | 6 2 1 5 Detach 2 | . 2 . . Swap 6 | . 2 . 4 Drop 9 | . 4 . 5 Fire 100 | . 25 10 65 Melee . | . . . . Ram . | . . . . Kick . | . . . . Crush . | . . . . Escape Stasis . | . . . . Rewire . | . . . . Trap . | . . . . Miscellaneous . | . . . . Route ------- -11/Scrapyard -10/Materials (discovered 4 exits: *Mat x3 / *Min) -10/Mines (discovered 2 exits: *Mat / *Sub) -10/Subcaves (discovered 1 exit: *Rec) History --------- Turn | Location | Event 9 | -11/Scrapyard | Identified exit to Materials 9 | -11/Scrapyard | Discovered exit to Materials (range 16) 63 | -11/Scrapyard | Entered Materials 63 | -10/Materials | Evolved 1 slot: Utility x1 300 | -10/Materials | Build established: Hacker-Mutant 424 | -10/Materials | Identified exit to Materials 424 | -10/Materials | Discovered exit to Materials (range 16) 609 | -10/Materials | Discovered exit to Materials (range 15) 810 | -10/Materials | Discovered exit to Materials (range 16) 1308 | -10/Materials | Identified exit to Mines 1308 | -10/Materials | Discovered exit to Mines (range 16) 1378 | -10/Materials | Entered Mines 1420 | -10/Mines | Deemed a non-threat by the Exiles lab entrance 1439 | -10/Mines | Joined a pair of Derelicts in attacking an 0b10 outpost 1485 | -10/Mines | Identified exit to Subcaves 1485 | -10/Mines | Discovered exit to Subcaves (range 9) 1553 | -10/Mines | Discovered exit to Materials (range 10) 1602 | -10/Mines | Assembled infested the area 1656 | -10/Mines | Met 8R-AWN 1761 | -10/Mines | Learned Materials garrison access intel 1785 | -10/Mines | Received a Rocket Launcher from a helpful Derelict 2115 | -10/Mines | Entered Subcaves 2115 | -10/Subcaves | Identified exit to Recycling 2115 | -10/Subcaves | Discovered exit to Recycling (range 14) 2116 | -10/Subcaves | Approached by a straggling Scientist 2142 | -10/Subcaves | Core integrity fell below 50% 2314 | -10/Subcaves | Shifting Twisted Machinery released Sub. Power Source 2317 | -10/Subcaves | Shifting Twisted Machinery released Sub. Beam Cannon 2463 | -10/Subcaves | Core integrity fell below 20% 2691 | -10/Subcaves | Visited 4L-MR0's lab 2713 | -10/Subcaves | Found Rainbow Chip 2715 | -10/Subcaves | Attached Rainbow Chip, gained temporary slots: Power, Propulsion, Utility, Weapon 2999 | -10/Subcaves | Learned Materials interactive machine intel 3002 | -10/Subcaves | Learned location of Zion (-7) 3002 | -10/Subcaves | Met a Zionite searching for "candidates" 3035 | -10/Subcaves | Build established: Hacker-Skirmisher 3641 | -10/Subcaves | Build established: Hacker-Mutant 3795 | -10/Subcaves | A Subdweller sparked back to life 3795 | -10/Subcaves | A Subdweller sparked back to life 3795 | -10/Subcaves | A Subdweller sparked back to life 3813 | -10/Subcaves | Found Powered Cannon 3815 | -10/Subcaves | Attached Powered Cannon, gained temporary slot: Power 3890 | -10/Subcaves | A swath of the cavern ceiling suddenly collapsed 3948 | -10/Subcaves | Build established: Hacker-Skirmisher 4219 | -10/Subcaves | Destroyed by P9-MUN(R) with Subdweller Laser Last Messages --------------- 03949_ Subatomizers dissect the Disposable Heat Sink. 03960_ IYFLG3KE#QU78#K#0 8XA L#K9/2RRZRPTMP 03971_ Subatomizers dissect the Slug Cannon. 03998_ System corrupted: Heat flow error (+263). 04023_ Critical hit (Destroy). 04023_ Lgt. Treads destroyed. 04023_ SR-WOK(R) destroyed. 04041_ Acquired Sub. Monowheel. 04080_ C7-PKC(R) destroyed. 04083_ Acquired 10 matter. 04084_ Z1-KL8(R) destroyed. 04089_ Acquired Sub. Monowheel. 04114_ System corrupted: Heat flow error (+278). 04140_ System corrupted: Component data lost. 04147_ Acquired 10 matter. 04182_ Subatomizers dissect the Sub. Power Source. 04192_ Subatomizers dissect the Disposable Heat Sink. Map ----- +----------------------------------------------------+ | ????????????????????????????## ####???????????? | | ????????????????????????????## ###???????????? | | ????????????????????????????## ##???????????? | | ????????????????????????????## ###??????????? | | ????????????????????????????## ###??????????? | | ????????????????????????????### ! ##??????????? | | ?????###????????????????????###!&## ##??????????? | | #########????????????????????## %######??????????? | | ##### #####?????????????????###&**#####??????????? | | ## ##????????????????####%! ###???????????? | | ### ###???????????????#### && ##???????????? | | #### ##???????????????#### ##???????????? | | #"#"# ???????????????### ###???????????? | | ###""#"# ???????###########" ## ###???????????? | | ####""## ?????############" ### ##???????????? | | ######"" #??#### ## #" "########???????????? | | ???###""" ##??### " "#########???????????? | | ???????#####??## ##""#"# ""###?????????????????? | | ##?????"###???## ####### " ##??????????????????? | | ###??????????#### ###### ""###??????????????????? | | ####???????##### ####"" ###??????????????????? | | ###"#?????#### #####" ##??????????????????? | | ####"???### ! #### ##??????????????????? | | ######### *% " ###??????????????????? | | # ####### #### ## ####??????????????????? | | #### ######### @####???????????????????? | | ## # ######### ###???????????????????? | | # # ##### R ##???????????????????? | | ## """ ### ##???????????????????? | | # % " " #### ##??????????????????? | | ##### ##### ### ##??????????????????? | | % ###### ###### % ;##??????????????????? | | ######?######????? ####??????????????????? | | #######??#####??????? ####??????????????????? | | ####???????????????? ### #????????????????????? | | ???????????????????? #### ?????????????????????? | | ??????????????????# ##?? ?????????????????????? | | ??????????????????###???? ?????????????????????? | | ??????????????????###???? ?????????????????????? | | ?????????????????????????% ?????????????????????? | | ????????????????????????? ?????????????????????? | | ?????????????????????????????????????????????????? | | ?????????????????????????????????????????????????? | | ?????????????????????????????????????????????????? | | ?????????????????????????????????????????????????? | | ?????????????????????????????????????????????????? | | ?????????????????????????????????????????????????? | | ##???????????????????????????????????????????????? | | ##??????????????????????????????????????????????? | | #??????????????????????????????????????????????? | +----------------------------------------------------+ Best States ------------- Heat Dissipation 39 Energy Generation 15 Energy Capacity 250 Matter Stores 300 Matter Capacity 300 Sight Range 16 Terrain Scan Density 10 Resistance: KI 35 Resistance: TH 35 Resistance: EX 35 Resistance: EM 35 Resistance: I 35 Resistance: S 35 Resistance: P 35 Evasion (%) 40 Recoil Reduction 2 Offensive Hacking 20 Item Schematics ----------------- None Robot Schematics ------------------ None Fabricated ------------ Nothing Repaired ---------- Nothing Studied --------- None Alien Tech Used ----------------- None Achievements -------------- None Challenges ------------ None Game ------ Seed CannonExpertFacilitator Manual? 0 Play Time 00:16:38 Cumulative 138.5 hours Start 2025.11.24 @ 15:07:15 End 2025.11.24 @ 15:22:31 Sessions 1 Manual Loads 0 Difficulty Explorer Special Mode None Game No. 160 Rogue 0 Adventurer 0 Explorer 160 Win Type - Total 0 Types 0/0/0/0/0/0/0/0/0/0 Lore% 68 Gallery% 66 Achievement% 51 Wizard Run 0 Options --------- Layout 1 ASCII 0 Keyboard 0 Movement Mouse Keybinds 0 Fullscreen 1 Font 24/Smallcaps Map View 50x35 Zoom Use 0% Tactical HUD 1 Map Filters NONE Filters NONE Steam 1 RUN: 5abb98a6-3650-4934-ae6d-ae85434405c0